fUSD/lending_fUSD_20260404
["ID","MTS","AMOUNT","RATE_DAILY","PERIOD"]
[419670057,1775274638473,-178.27,0.00010722,2]
[419670058,1775274638482,-9999.99,0.00010722,2]
[419670059,1775274638492,-15253.88,0.00010722,2]
[419670060,1775274638501,-999.99,0.00010735,2]
[419670061,1775274638510,-299.99,0.00010735,2]
[419670062,1775274638519,-1600.0,0.0001077,2]
[419670063,1775274638529,-165.99,0.00010784,2]
[419670064,1775274638538,-261.83785163,0.000108,2]
[419670065,1775274638547,-1300.0,0.000108,3]
[419670066,1775274638556,-1700.0,0.000109,3]
[419670067,1775274638566,-7298.34982605,0.000109,2]
[419670068,1775274638575,-502.00566011,0.00010959,2]
[419670069,1775274638584,-150.0,0.00010959,2]
[419670070,1775274638594,-166.66,0.0001107,2]
[419670071,1775274638603,-500.0,0.00011078,2]
[419670072,1775274638612,-500.0,0.00011078,2]
[419670073,1775274638621,-500.0,0.00011078,2]
[419670074,1775274638630,-500.0,0.00011078,2]
[419670075,1775274638640,-500.0,0.00011078,2]
[419670076,1775274638649,-500.0,0.00011078,2]
[419670077,1775274638659,-500.0,0.00011078,2]
[419670078,1775274638668,-300.40994394,0.00011078,2]
[419670079,1775274638678,-500.0,0.00011078,2]
[419670080,1775274638687,-500.0,0.00011078,2]
[419670081,1775274638697,-500.0,0.00011078,2]
[419670082,1775274638706,-500.0,0.00011078,2]
[419670083,1775274638715,-500.0,0.00011078,2]
[419670084,1775274638725,-500.0,0.00011078,2]
[419670085,1775274638734,-500.0,0.00011078,2]
[419670086,1775274638744,-504.52941329,0.00011078,2]
[419670087,1775274638752,-487.42,0.00011118,2]
[419670088,1775274638762,-5457.87330027,0.00011193,2]
[419670089,1775274638771,-297.49,0.00011233,2]
[419670090,1775274638780,-994.42051783,0.00011263,2]
[419670091,1775274638790,-8055.83574034,0.00011293,2]
[419670092,1775274638799,-959.26300382,0.00011293,2]
[419670093,1775274638808,-417.37182346,0.00011293,2]
[419670094,1775274638818,-9004.74735575,0.00011293,2]
[419670095,1775274638826,-500.0,0.00011352,2]
[419670096,1775274638836,-503.23062407,0.00011373,2]
[419670097,1775274638846,-511.12151388,0.00011373,2]
[419670098,1775274638856,-500.0,0.00011373,2]
[419670099,1775274638867,-500.0,0.00011373,2]
[419670100,1775274638877,-500.0,0.00011373,2]
[419670101,1775274638887,-7298.34982605,0.00011376,2]
[419670102,1775274638896,-315.16545972,0.00011383,2]
[419670103,1775274638905,-315.16545972,0.00011383,2]
[419670104,1775274638914,-487.42,0.00011392,2]
[419670105,1775274638924,-1254260.3645,0.00011393,2]
[419670106,1775274638933,-165.99,0.00011419,2]
[419670107,1775274638943,-166.66,0.00011424,2]
[419670108,1775274638952,-721.9,0.00011446,2]
[419670109,1775274638962,-255.0,0.00011645,2]
[419670110,1775274638971,-600.0,0.00011659,2]
[419670111,1775274638981,-600.0,0.00011659,2]
[419670112,1775274638992,-600.0,0.00011659,2]
[419670113,1775274639002,-600.0,0.00011659,2]
[419670114,1775274639012,-671.38260253,0.00011659,2]
[419670115,1775274639022,-250.0,0.00011659,2]
[419670116,1775274639033,-5000.0,0.0001166,2]
[419670117,1775274639043,-487.42,0.00011666,2]
[419670118,1775274639054,-420.0,0.00011668,2]
[419670119,1775274639063,-302.0,0.0001167,2]
[419670120,1775274639072,-420.0,0.0001167,2]
[419670121,1775274639082,-300.0,0.00011675,2]
[419670122,1775274639091,-5000.0,0.00011675,2]
[419670123,1775274639100,-250.0,0.00011675,2]
[419670124,1775274639110,-1680.0,0.00011676,2]
[419670125,1775274639119,-193.0,0.00011677,2]
[419670126,1775274639128,-5000.0,0.00011677,2]
[419670127,1775274639139,-5457.87330024,0.00011716,2]
[419670128,1775274639148,-166.66,0.00011778,2]
[419670129,1775274639157,-1000.0,0.00011921,2]
[419670130,1775274639167,-1000.0,0.00011921,2]
[419670131,1775274639176,-203.7698014,0.00011921,2]
[419670132,1775274639186,-487.42,0.0001194,2]
[419670133,1775274639195,-165.99,0.00012053,2]
[419670134,1775274639205,-1600.0,0.00012117,2]
[419670135,1775274639214,-7298.34982605,0.0001213,2]
[419670136,1775274639223,-166.66,0.00012131,2]
[419670137,1775274639233,-487.42856465,0.00012214,2]
[419670138,1775274639242,-5457.87330024,0.00012239,2]
[419670139,1775274639252,-155.0,0.00012246,2]
[419670140,1775274639263,-33005.9344,0.00012247,2]
[419670141,1775274639274,-1000.0,0.00012247,2]
[419670142,1775274639285,-182.0,0.00012247,2]
[419670143,1775274639296,-1500.0,0.00012468,2]
[419670144,1775274639306,-1500.0,0.00012468,2]
[419670145,1775274639316,-166.66,0.00012485,2]
[419670146,1775274639326,-165.99,0.00012688,2]
[419670147,1775274639553,-5457.87330024,0.00012762,2]
[419670148,1775274639563,-433.0,0.0001277,2]
[419670149,1775274639572,-300.0,0.00012827,2]
[419670150,1775274639582,-587.0,0.00012829,2]
[419670151,1775274639592,-2351.0,0.00012843,2]
[419670152,1775274639601,-7298.34982605,0.00012884,2]
[419670153,1775274639611,-845.9608693,0.00013016,2]
[419670154,1775274639620,-519.0,0.00013111,2]
[419670155,1775274639629,-5457.87330024,0.00013285,2]
[419670157,1775274639639,-165.99,0.00013322,2]
[419670159,1775274639648,-1600.0,0.00013463,2]
[419670160,1775274639659,-155.0,0.00013471,2]
[419670161,1775274639669,-417.37182346,0.00013597,2]
[419670162,1775274639678,-7298.34982605,0.00013638,2]
[419670163,1775274639688,-9231.95,0.00013694,2]
[419670164,1775274639697,-502.02201151,0.00013698,2]
[419670165,1775274639707,-500.0,0.00013698,2]
[419670166,1775274639716,-500.0,0.00013698,2]
[419670167,1775274639726,-500.0,0.00013698,2]
[419670168,1775274639736,-500.0,0.00013698,2]
[419670169,1775274639746,-500.0,0.00013698,2]
[419670170,1775274639756,-507.01970036,0.00013698,2]
[419670171,1775274639766,-500.0,0.00013698,2]
[419670172,1775274639776,-500.0,0.00013698,2]
[419670173,1775274639785,-500.0,0.00013698,2]
[419670174,1775274639796,-500.0,0.00013698,2]
[419670175,1775274639805,-500.0,0.00013698,2]
[419670176,1775274639814,-500.0,0.00013698,2]
[419670177,1775274639823,-500.0,0.00013698,2]
[419670178,1775274639832,-500.0,0.00013698,2]
[419670179,1775274639841,-500.0,0.00013698,2]
[419670180,1775274639850,-500.0,0.00013698,2]
[419670181,1775274639859,-500.0,0.00013698,2]
[419670182,1775274639868,-500.0,0.00013698,2]
[419670183,1775274639876,-500.0,0.00013698,2]
[419670184,1775274639886,-500.0,0.00013698,2]
[419670185,1775274639895,-500.0,0.00013698,2]
[419670186,1775274639904,-500.0,0.00013698,2]
[419670187,1775274639913,-500.0,0.00013698,2]
[419670188,1775274639923,-500.0,0.00013698,2]
[419670189,1775274639932,-500.0,0.00013698,2]
[419670190,1775274639942,-500.0,0.00013698,2]
[419670191,1775274639951,-500.0,0.00013698,2]
[419670192,1775274639962,-500.0,0.00013698,2]
[419670193,1775274639972,-315.75,0.00013698,2]
[419670194,1775274639981,-500.0,0.00013698,2]
[419670195,1775274639991,-500.0,0.00013698,2]
[419670196,1775274640001,-500.0,0.00013698,2]
[419670197,1775274640012,-500.0,0.00013698,2]
[419670198,1775274640023,-500.0,0.00013698,2]
[419670199,1775274640033,-500.0,0.00013698,2]
[419670200,1775274640042,-500.0,0.00013698,2]
[419670201,1775274640051,-160.12835999,0.00013698,2]
[419670202,1775274640061,-500.0,0.00013698,2]
[419670203,1775274640070,-500.0,0.00013698,2]
[419670204,1775274640078,-500.0,0.00013698,2]
[419670205,1775274640087,-500.0,0.00013698,2]
[419670206,1775274640096,-500.0,0.00013698,2]
[419670207,1775274640106,-500.0,0.00013698,2]
[419670208,1775274640115,-500.0,0.00013698,2]
[419670209,1775274640124,-500.0,0.00013698,2]
[419670210,1775274640134,-500.0,0.00013698,2]
[419670211,1775274640143,-500.0,0.00013698,2]
[419670212,1775274640152,-500.0,0.00013698,2]
[419670213,1775274640162,-344.77648348,0.00013698,2]
[419670214,1775274640172,-500.0,0.00013698,2]
[419670215,1775274640183,-500.0,0.00013698,2]
[419670216,1775274640194,-500.0,0.00013698,2]
[419670217,1775274640204,-500.0,0.00013698,2]
[419670218,1775274640213,-500.0,0.00013698,2]
[419670219,1775274640223,-500.0,0.00013698,2]
[419670220,1775274640234,-500.0,0.00013698,2]
[419670221,1775274640244,-500.0,0.00013698,2]
[419670222,1775274640253,-500.0,0.00013698,2]
[419670223,1775274640263,-500.0,0.00013698,2]
[419670224,1775274640272,-500.0,0.00013698,2]
[419670225,1775274640281,-500.0,0.00013698,2]
[419670226,1775274640291,-500.0,0.00013698,2]
[419670227,1775274640300,-500.0,0.00013698,2]
[419670228,1775274640310,-500.0,0.00013698,2]
[419670229,1775274640319,-359.10439347,0.00013698,2]
[419670230,1775274640328,-500.0,0.00013698,2]
[419670231,1775274640338,-500.0,0.00013698,2]
[419670232,1775274640347,-500.0,0.00013698,2]
[419670233,1775274640357,-500.0,0.00013698,2]
[419670234,1775274640366,-500.0,0.00013698,2]
[419670235,1775274640376,-500.0,0.00013698,2]
[419670236,1775274640386,-500.0,0.00013698,2]
[419670237,1775274640396,-500.0,0.00013698,2]
[419670238,1775274640406,-500.0,0.00013698,2]
[419670239,1775274640416,-500.0,0.00013698,2]
[419670240,1775274640428,-500.0,0.00013698,2]
[419670241,1775274640437,-500.0,0.00013698,2]
[419670242,1775274640447,-500.0,0.00013698,2]
[419670243,1775274640457,-500.0,0.00013698,2]
[419670244,1775274640467,-500.0,0.00013698,2]
[419670245,1775274640475,-500.0,0.00013698,2]
[419670246,1775274640485,-500.0,0.00013698,2]
[419670247,1775274640494,-500.0,0.00013698,2]
[419670248,1775274640503,-500.0,0.00013698,2]
[419670249,1775274640512,-322.40547967,0.00013698,2]
[419670250,1775274640521,-592.21136403,0.00013698,2]
[419670251,1775274640531,-500.0,0.00013698,2]
[419670252,1775274640540,-500.0,0.00013698,2]
[419670253,1775274640550,-500.0,0.00013698,2]
[419670254,1775274640559,-500.0,0.00013698,2]
[419670255,1775274640569,-500.0,0.00013698,2]
[419670256,1775274640579,-500.0,0.00013698,2]
[419670257,1775274640589,-500.0,0.00013698,2]
[419670258,1775274640599,-552.58785627,0.00013698,2]
[419670259,1775274640608,-150.0,0.00013699,2]
[419670260,1775274640618,-150.0,0.00013699,2]
[419670261,1775274640627,-150.0,0.00013699,2]
[419670262,1775274640638,-150.0,0.00013699,2]
[419670263,1775274640647,-5457.87330024,0.00013808,2]
[419670264,1775274640656,-420.726299,0.00013858,2]
[419670265,1775274640665,-165.99,0.00013956,2]
[419670266,1775274640674,-150.0,0.00013973,2]
[419670267,1775274640683,-150.0,0.00013973,2]
[419670268,1775274640693,-150.0,0.00013973,2]
[419670269,1775274640703,-150.0,0.00013973,2]
[419670270,1775274640712,-473.51720145,0.00014006,2]
[419670271,1775274640722,-250.0,0.00014006,2]
[419670272,1775274640731,-736.0,0.00014012,2]
[419670273,1775274640740,-823.0,0.00014103,2]
[419670274,1775274640750,-3292.0,0.00014127,2]
[419670275,1775274640760,-150.0,0.00014247,2]
[419670276,1775274640770,-150.0,0.00014247,2]
[419670277,1775274640779,-327.231564,0.00014301,2]
[419670278,1775274640788,-989.9,0.00014311,4]
[419670279,1775274640797,-987.91,0.00014311,4]
[419670280,1775274640806,-1016.63,0.00014311,4]
[419670281,1775274640816,-981.62,0.00014311,4]
[419670282,1775274640826,-993.09,0.00014311,4]
[419670283,1775274640835,-971.56,0.00014311,4]
[419670284,1775274640844,-5457.87330024,0.00014331,2]
[419670285,1775274640853,-7298.34982605,0.00014392,2]
[419670286,1775274640862,-150.0,0.000144,2]
[419670287,1775274640871,-150.0,0.000144,2]
[419670288,1775274640880,-150.0,0.000144,2]
[419670289,1775274640889,-150.33770113,0.000144,2]
[419670290,1775274640898,-150.0,0.000144,2]
[419670291,1775274640908,-150.0,0.000144,2]
[419670292,1775274640917,-150.0,0.000144,2]
[419670293,1775274640926,-150.0,0.000144,2]
[419670294,1775274640936,-150.0,0.000144,2]
[419670295,1775274640948,-150.0,0.000144,2]
[419670296,1775274640959,-150.0,0.000144,2]
[419670297,1775274640969,-150.0,0.000144,2]
[419670298,1775274640979,-150.0,0.000144,2]
[419670299,1775274640991,-150.0,0.00014545,2]
[419670300,1775274641001,-212.3194392,0.00014566,2]
[419670301,1775274641012,-213.9698,0.00014571,2]
[419670302,1775274641023,-150.0,0.00014578,2]
[419670303,1775274641034,-165.99,0.00014591,2]
[419670304,1775274641044,-500.0,0.00014593,2]
[419670305,1775274641055,-500.0,0.00014593,2]
[419670306,1775274641066,-500.0,0.00014593,2]
[419670307,1775274641077,-500.0,0.00014593,2]
[419670308,1775274641086,-500.0,0.00014593,2]
[419670309,1775274641096,-500.0,0.00014593,2]
[419670310,1775274641107,-500.0,0.00014593,2]
[419670311,1775274641117,-500.0,0.00014593,2]
[419670312,1775274641127,-500.0,0.00014593,2]
[419670313,1775274641139,-500.0,0.00014593,2]
[419670314,1775274641149,-500.0,0.00014593,2]
[419670315,1775274641159,-500.0,0.00014593,2]
[419670316,1775274641169,-500.0,0.00014593,2]
[419670317,1775274641178,-500.0,0.00014593,2]
[419670318,1775274641189,-500.0,0.00014593,2]
[419670319,1775274641198,-500.0,0.00014593,2]
[419670320,1775274641208,-500.0,0.00014593,2]
[419670321,1775274641218,-151.0,0.00014593,2]
[419670322,1775274641227,-500.0,0.00014593,2]
[419670323,1775274641236,-500.0,0.00014593,2]
[419670324,1775274641246,-500.0,0.00014593,2]
[419670325,1775274641255,-500.0,0.00014593,2]
[419670326,1775274641264,-174.61919141,0.00014593,2]
[419670327,1775274641273,-500.0,0.00014593,2]
[419670328,1775274641284,-500.0,0.00014593,2]
[419670329,1775274641295,-150.0,0.000146,2]
[419670330,1775274641304,-176.33436265,0.00014606,2]
[419670331,1775274641313,-236.77784425,0.00014614,2]
[419670332,1775274641323,-500.0,0.00014648,2]
[419670333,1775274641333,-151.0,0.00014648,2]
[419670334,1775274641343,-150.0,0.00014691,2]
[419670335,1775274641353,-500.0,0.00014703,2]
[419670336,1775274641363,-151.0,0.00014703,2]
[419670337,1775274641372,-500.0,0.00014705,2]
[419670338,1775274641382,-150.0,0.0001472,2]
[419670339,1775274641390,-150.0,0.00014756,2]
[419670340,1775274641400,-500.0,0.00014758,2]
[419670341,1775274641409,-151.0,0.00014758,2]
[419670342,1775274641419,-150.0,0.000148,2]
[419670343,1775274641429,-1600.0,0.00014809,2]
[419670344,1775274641440,-500.0,0.00014813,2]
[419670345,1775274641450,-151.0,0.00014813,2]
[419670346,1775274641460,-150.0,0.00014836,2]
[419670347,1775274641470,-5457.87330024,0.00014854,2]
[419670348,1775274641479,-500.0,0.00014868,2]
[419670349,1775274641488,-151.0,0.00014868,2]
[419670350,1775274641499,-585.58165289,0.00014872,2]
[419670351,1775274641509,-356.18414235,0.00014913,2]
[419670352,1775274641518,-500.0,0.00014923,2]
[419670353,1775274641528,-151.0,0.00014923,2]
[419670354,1775274641538,-150.0,0.00014933,2]
[419670355,1775274641547,-500.0,0.00014978,2]
[419670356,1775274641556,-151.0,0.00014978,2]
[419670357,1775274641566,-150.0,0.00014982,2]
[419670358,1775274641575,-150.0,0.00015,2]
[419670359,1775274641584,-436.76510711,0.00015022,2]
[419670360,1775274641594,-500.0,0.00015033,2]
[419670361,1775274641603,-188.11543045,0.00015033,2]
[419670362,1775274641614,-150.0,0.0001504,2]
[419670363,1775274641625,-500.0,0.00015088,2]
[419670364,1775274641637,-150.0,0.00015111,2]
[419670365,1775274641646,-150.0,0.00015127,2]
[419670366,1775274641656,-181.08010149,0.00015141,2]
[419670367,1775274641665,-500.0,0.00015143,2]
[419670368,1775274641675,-7298.34982605,0.00015146,2]
[419670369,1775274641685,-150.0,0.000152,2]
[419670370,1775274641695,-150.0,0.000152,2]
[419670371,1775274641703,-150.0,0.000152,2]
[419670372,1775274641713,-150.0,0.000152,2]
[419670373,1775274641723,-150.0,0.000152,2]
[419670374,1775274641732,-150.0,0.000152,2]
[419670375,1775274641743,-2000.0,0.000152,2]
[419670376,1775274641753,-165.99,0.00015225,2]
[419670377,1775274641764,-239.73238017,0.00015258,2]
[419670378,1775274641773,-150.0,0.00015273,2]
[419670379,1775274641782,-150.0,0.00015289,2]
[419670380,1775274641792,-150.0,0.0001536,2]
[419670381,1775274641801,-252.0,0.00015371,2]
[419670382,1775274641812,-5457.87330024,0.00015377,2]
[419670383,1775274641821,-150.0,0.000154,2]
[419670384,1775274641832,-150.0,0.00015418,2]
[419670385,1775274641843,-354.85202867,0.00015447,2]
[419670386,1775274641852,-150.0,0.00015467,2]
[419670387,1775274641861,-1152.0,0.00015503,2]
[419670388,1775274641870,-4000.0,0.00015507,2]
[419670389,1775274641878,-4609.0,0.0001554,2]
[419670390,1775274641888,-150.0,0.00015564,2]
[419670391,1775274641896,-374.36395459,0.00015565,2]
[419670392,1775274641906,-512.14731784,0.00015579,2]
[419670393,1775274641916,-212.0,0.00015592,2]
[419670394,1775274641925,-2000.0,0.000156,2]
[419670395,1775274641934,-150.0,0.000156,2]
[419670396,1775274641944,-417.09,0.00015642,2]
[419670397,1775274641955,-150.0,0.00015644,2]
[419670398,1775274641965,-182.0,0.0001568,2]
[419670399,1775274641976,-182.0,0.0001568,2]
[419670400,1775274641987,-182.0,0.0001568,2]
[419670401,1775274641997,-182.0,0.0001568,2]
[419670402,1775274642007,-181.9,0.0001568,2]
[419670403,1775274642016,-280.416,0.0001568,2]
[419670404,1775274642025,-5356.681,0.0001568,2]
[419670405,1775274642035,-150.0,0.0001568,2]
[419670406,1775274642046,-187.78006525,0.00015689,2]
[419670407,1775274642057,-350.0,0.000157,2]
[419670408,1775274642067,-150.0,0.00015709,2]
[419670409,1775274642077,-1000.0,0.00015726,2]
[419670410,1775274642086,-150.0,0.00015739,2]
[419670411,1775274642095,-1000.0,0.00015742,2]
[419670412,1775274642105,-306.259251,0.00015753,2]
[419670413,1775274642115,-1000.0,0.00015755,2]
[419670414,1775274642124,-1000.0,0.00015771,2]
[419670415,1775274642133,-1000.0,0.00015799,2]
[419670416,1775274642142,-150.0,0.000158,2]
[419670417,1775274642151,-2000.0,0.000158,2]
[419670418,1775274642161,-300.0,0.000158,5]
[419670419,1775274642170,-1000.0,0.00015801,2]
[419670420,1775274642180,-150.0,0.00015819,2]
[419670421,1775274642190,-150.0,0.00015822,2]
[419670422,1775274642199,-1000.0,0.00015837,2]
[419670423,1775274642209,-1669.63731,0.0001584,2]
[419670424,1775274642218,-1669.63731,0.0001584,2]
[419670425,1775274642227,-1669.63731,0.0001584,2]
[419670426,1775274642236,-1000.0,0.00015852,2]
[419670427,1775274642245,-150.0,0.00015855,2]
[419670428,1775274642255,-1000.0,0.00015863,2]
[419670429,1775274642264,-150.0,0.00015874,2]
[419670430,1775274642273,-1000.0,0.00015877,2]
[419670431,1775274642282,-500.0,0.0001589,2]
[419670432,1775274642291,-500.0,0.0001589,2]
[419670433,1775274642300,-500.0,0.0001589,2]
[419670434,1775274642309,-500.0,0.0001589,2]
[419670435,1775274642319,-500.0,0.0001589,2]
[419670437,1775274642327,-500.0,0.0001589,2]
[419670439,1775274642336,-500.0,0.0001589,2]
[419670441,1775274642345,-500.0,0.0001589,2]
[419670443,1775274642354,-500.0,0.0001589,2]
[419670445,1775274642363,-500.0,0.0001589,2]
[419670447,1775274642373,-500.0,0.0001589,2]
[419670449,1775274642382,-500.0,0.0001589,2]
[419670451,1775274642392,-500.0,0.0001589,2]
[419670453,1775274642402,-500.0,0.0001589,2]
[419670455,1775274642411,-500.0,0.0001589,2]
[419670456,1775274642421,-500.0,0.0001589,2]
[419670457,1775274642431,-4000.0,0.00015895,2]
[419670458,1775274642440,-150.0,0.00015895,2]
[419670459,1775274642449,-5490.724,0.000159,2]
[419670460,1775274642459,-2437.2089,0.000159,2]
[419670461,1775274642468,-300.0,0.000159,5]
[419670462,1775274642477,-5457.87330024,0.000159,2]
[419670463,1775274642487,-417.37182346,0.000159,2]
[419670464,1775274642497,-3567.0,0.000159,5]
[419670465,1775274642508,-2859.0,0.000159,5]
[419670466,1775274642521,-150.0,0.00015918,2]
[419670467,1775274642531,-1000.0,0.00015924,2]
[419670468,1775274642540,-150.0,0.00015944,2]
[419670469,1775274642550,-666.0,0.00015975,2]
[419670470,1775274642559,-383332.7675625,0.00015976,2]
[419670471,1775274642568,-33471.71875,0.00015976,2]
[419670472,1775274642578,-1190.0438643,0.00015976,2]
[419670473,1775274642587,-151.0,0.00015976,2]
[419670474,1775274642596,-151.0,0.00015976,2]
[419670475,1775274642606,-501.088556,0.00015976,2]
[419670476,1775274642615,-660.913974,0.00015976,2]
[419670477,1775274642624,-660.913974,0.00015976,2]
[419670478,1775274642634,-501.088556,0.00015976,2]
[419670479,1775274642643,-660.913974,0.00015976,2]
[419670480,1775274642652,-501.088556,0.00015976,2]
[419670481,1775274642661,-660.913974,0.00015976,2]
[419670482,1775274642671,-501.088556,0.00015976,2]
[419670483,1775274642680,-153.517142,0.00015976,2]
[419670484,1775274642689,-151.0,0.00015976,2]
[419670485,1775274642699,-151.0,0.00015976,2]
[419670486,1775274642708,-151.0,0.00015976,2]
[419670487,1775274642717,-313.327004,0.00015976,2]
[419670488,1775274642727,-313.327004,0.00015976,2]
[419670489,1775274642736,-313.327004,0.00015976,2]
[419670490,1775274642746,-313.327004,0.00015976,2]
[419670491,1775274642755,-151.0,0.00015976,2]
[419670492,1775274642764,-315.16545972,0.0001599,2]
[419670493,1775274642774,-670.84839751,0.00015999,2]
[419670494,1775274642783,-153.32332907,0.00016,2]
[419670495,1775274642792,-153.40099906,0.00016,2]
[419670496,1775274642801,-152.61128617,0.00016,2]
[419670497,1775274642811,-256.52934676,0.00016,2]
[419670498,1775274642819,-154.4422212,0.00016,2]
[419670499,1775274642828,-150.96608219,0.00016,2]
[419670500,1775274642838,-151.47849991,0.00016,2]
[419670501,1775274642846,-150.52172746,0.00016,2]
[419670502,1775274642856,-287.34492743,0.00016,2]
[419670503,1775274642867,-153.65348451,0.00016,2]
[419670504,1775274642876,-151.47568116,0.00016,2]
[419670505,1775274642885,-153.45263565,0.00016,2]
[419670506,1775274642894,-1185204.93131737,0.00016,2]
[419670512,1775274643676,-6901.30536174,0.00016,2]
[419670513,1775274643688,-719.15136024,0.00016,2]
[419670514,1775274643699,-436.59552218,0.00016,2]
[419670515,1775274643711,-2383.6631228,0.00016,2]
[419670516,1775274644428,-44.55036799,0.00010622,2]
[419670517,1775274644452,-136.88541549,0.00010622,2]
[419670518,1775274644463,-502.52784413,0.00013698,2]
[419670519,1775274644473,-1364.70599182,0.00016,2]
[419670521,1775274647256,-844.69754148,0.00010616,2]
[419670522,1775274647268,-2698.84995852,0.00010616,2]
[419670523,1775274647278,-5195.5650887,0.000159,2]
[419670524,1775274647361,-2102.78473735,0.000159,2]
[419670525,1775274647371,-1802.14399461,0.00015931,2]
[419670526,1775274647636,-197.85600539,0.00015931,2]
[419670527,1775274647645,-415.56488061,0.00016,2]
[419670528,1775274647657,-1930.59892602,0.00016,2]
[419670529,1775274647668,-1531.04928,0.00016,2]
[419670530,1775274647680,-715.2085,0.00016,2]
[419670531,1775274647691,-1056.1642,0.00016,2]
[419670536,1775274647822,-18.89603925,0.00016,2]
[419670592,1775274868990,213.77083829,0.00010408,2]
[419670593,1775274924790,445.73928416,0.00010451,2]
[419670594,1775274955021,1005.6,0.00010305,2]
[419670596,1775274963324,4150.5116,0.00010416,2]
[419670597,1775275020334,181.43578347,0.00010473,2]
[419670598,1775275022993,417.37182346,0.00010416,2]
[419670599,1775275023285,959.26300382,0.00010473,2]
[419670600,1775275055192,297.15952278,0.00010451,2]
[419670602,1775275108370,2329.15814402,0.00010416,2]
[419670603,1775275108392,6675.58921173,0.00010416,2]
[419670604,1775275125390,3324.42078827,0.00010066,2]
[419670605,1775275125413,1036.70921173,0.00010066,2]
[419670606,1775275132577,8963.30078827,0.00010416,2]
[419670607,1775275132599,10000.01,0.00010416,2]
[419670608,1775275132620,10000.01,0.00010416,2]
[419670609,1775275132641,10000.01,0.00010416,2]
[419670610,1775275132662,10000.01,0.00010416,2]
[419670611,1775275132682,10000.01,0.00010416,2]
[419670612,1775275132704,10000.01,0.00010416,2]
[419670613,1775275132726,10000.01,0.00010416,2]
[419670614,1775275132747,10000.01,0.00010416,2]
[419670615,1775275132768,9694.11081173,0.00010416,2]
[419670616,1775275189336,198.10634852,0.00010451,2]
[419670617,1775275193809,4801.90365148,0.00010416,2]
[419670618,1775275193830,1971.01244852,0.00010416,2]
[419670622,1775275291374,5000.01,0.00010416,2]
[419670623,1775275291395,5000.01,0.00010416,2]
[419670624,1775275291417,5000.01,0.00010416,2]
[419670625,1775275291440,5000.01,0.00010416,2]
[419670626,1775275291462,5000.01,0.00010416,2]
[419670632,1775275293234,-5000.01,0.00010416,2]
[419670633,1775275293365,-5000.01,0.00010416,2]
[419670634,1775275293492,-5000.01,0.00010416,2]
[419670635,1775275293594,-5000.01,0.00010416,2]
[419670636,1775275293699,-5000.01,0.00010416,2]
[419670637,1775275296644,-5000.01,0.00010416,2]
[419670638,1775275297256,-5000.01,0.00010416,2]
[419670639,1775275297314,-5000.01,0.00010416,2]
[419670640,1775275297344,-5000.01,0.00010416,2]
[419670641,1775275297369,-5000.01,0.00010416,2]
[419670642,1775275299378,-5000.01,0.00010416,2]
[419670643,1775275299512,-2268.3117,0.00010416,2]